fUSD/lending_fUSD_20260427
["ID","MTS","AMOUNT","RATE_DAILY","PERIOD"]
[421258865,1777287251612,-235.486194,0.00041096,120]
[421258866,1777287251622,-791.147729,0.00041096,120]
[421258867,1777287251631,-524.321937,0.00041096,120]
[421258868,1777287251640,-700.730925,0.00041096,120]
[421258869,1777287251650,-580.069305,0.00041096,120]
[421258870,1777287251659,-235.486194,0.00041096,120]
[421258871,1777287251676,-791.147736,0.00041096,120]
[421258872,1777287251685,-524.321937,0.00041096,120]
[421258873,1777287251696,-580.069305,0.00041096,120]
[421258874,1777287251705,-700.730925,0.00041096,120]
[421258875,1777287251715,-235.486194,0.00041096,120]
[421258876,1777287251724,-524.321937,0.00041096,120]
[421258877,1777287251733,-580.069305,0.00041096,120]
[421258878,1777287251744,-700.730925,0.00041096,120]
[421258879,1777287251754,-235.486194,0.00041096,120]
[421258880,1777287251763,-151.0,0.00041096,120]
[421258881,1777287251772,-524.321937,0.00041096,120]
[421258882,1777287251781,-580.069305,0.00041096,120]
[421258883,1777287251790,-235.486194,0.00041096,120]
[421258884,1777287251799,-151.0,0.00041096,120]
[421258885,1777287251809,-524.321937,0.00041096,120]
[421258886,1777287251821,-700.730925,0.00041096,120]
[421258887,1777287251830,-151.0,0.00041096,120]
[421258888,1777287251840,-580.069305,0.00041096,120]
[421258889,1777287251850,-235.486194,0.00041096,120]
[421258890,1777287251860,-151.0,0.00041096,120]
[421258891,1777287251869,-524.321937,0.00041096,120]
[421258892,1777287251879,-700.730925,0.00041096,120]
[421258893,1777287251888,-151.0,0.00041096,120]
[421258894,1777287251897,-1058.640559,0.00041096,120]
[421258895,1777287251906,-580.069305,0.00041096,120]
[421258896,1777287251915,-235.486194,0.00041096,120]
[421258897,1777287251925,-151.0,0.00041096,120]
[421258898,1777287251934,-524.321937,0.00041096,120]
[421258899,1777287251944,-151.0,0.00041096,120]
[421258900,1777287251953,-700.730925,0.00041096,120]
[421258901,1777287251963,-1058.640559,0.00041096,120]
[421258902,1777287251972,-580.069305,0.00041096,120]
[421258903,1777287251982,-235.486194,0.00041096,120]
[421258904,1777287251991,-524.321937,0.00041096,120]
[421258905,1777287252000,-151.0,0.00041096,120]
[421258906,1777287252010,-700.73093,0.00041096,120]
[421258907,1777287252019,-1058.640559,0.00041096,120]
[421258908,1777287252028,-580.069305,0.00041096,120]
[421258909,1777287252038,-235.486194,0.00041096,120]
[421258910,1777287252047,-151.0,0.00041096,120]
[421258911,1777287252057,-151.0,0.00041096,120]
[421258912,1777287252067,-524.321937,0.00041096,120]
[421258913,1777287252076,-1058.640559,0.00041096,120]
[421258914,1777287252086,-580.069305,0.00041096,120]
[421258915,1777287252096,-235.486194,0.00041096,120]
[421258916,1777287252105,-151.0,0.00041096,120]
[421258917,1777287252115,-151.0,0.00041096,120]
[421258918,1777287252125,-524.321936,0.00041096,120]
[421258919,1777287252135,-1058.640559,0.00041096,120]
[421258920,1777287252145,-580.069305,0.00041096,120]
[421258921,1777287252154,-235.486194,0.00041096,120]
[421258922,1777287252164,-151.0,0.00041096,120]
[421258923,1777287252174,-151.0,0.00041096,120]
[421258924,1777287252183,-1058.640559,0.00041096,120]
[421258925,1777287252193,-580.069302,0.00041096,120]
[421258926,1777287252203,-235.486201,0.00041096,120]
[421258927,1777287252212,-534.0,0.00041096,120]
[421258928,1777287252221,-300.0,0.00041096,30]
[421258929,1777287252231,-300.0,0.00041096,30]
[421258930,1777287252240,-300.0,0.00041096,30]
[421258931,1777287252249,-207.41969193,0.00041096,30]
[421258932,1777287252259,-250.0,0.00041096,120]
[421258933,1777287252267,-500.0,0.00041096,120]
[421258934,1777287252277,-1383.219,0.000411,120]
[421258935,1777287252286,-1383.219,0.000411,120]
[421258936,1777287252296,-1383.22,0.000411,120]
[421258937,1777287252305,-166.0,0.000411,120]
[421258938,1777287252315,-500.0,0.000411,14]
[421258939,1777287252324,-500.0,0.000411,14]
[421258940,1777287252333,-500.0,0.000411,14]
[421258941,1777287252343,-500.0,0.000411,14]
[421258942,1777287252352,-500.0,0.000411,14]
[421258943,1777287252361,-500.0,0.000411,14]
[421258944,1777287252371,-500.0,0.000411,14]
[421258945,1777287252380,-500.0,0.000411,14]
[421258946,1777287252389,-500.0,0.000411,14]
[421258947,1777287252398,-500.0,0.000411,14]
[421258948,1777287252407,-500.0,0.000411,14]
[421258949,1777287252416,-500.0,0.000411,14]
[421258950,1777287252425,-500.0,0.000411,14]
[421258951,1777287252434,-500.0,0.000411,14]
[421258952,1777287252443,-500.0,0.000411,14]
[421258953,1777287252452,-500.0,0.000411,14]
[421258954,1777287252461,-500.0,0.000411,14]
[421258955,1777287252469,-500.0,0.000411,14]
[421258956,1777287252479,-500.0,0.000411,14]
[421258957,1777287252487,-500.0,0.000411,14]
[421258958,1777287252497,-500.0,0.000411,14]
[421258959,1777287252506,-500.0,0.000411,14]
[421258960,1777287252515,-500.0,0.000411,14]
[421258961,1777287252524,-500.0,0.000411,14]
[421258962,1777287252533,-500.0,0.000411,14]
[421258963,1777287252542,-500.0,0.000411,14]
[421258964,1777287252552,-217.3,0.000411,14]
[421258965,1777287252561,-700.0,0.000411,120]
[421258966,1777287252570,-700.0,0.000411,91]
[421258967,1777287252579,-1000.0,0.000411,99]
[421258968,1777287252588,-184.04815743,0.00041106,120]
[421258969,1777287252598,-490.0,0.00041111,120]
[421258970,1777287252607,-150.0,0.00041121,120]
[421258971,1777287252616,-157.2068802,0.00041127,7]
[421258972,1777287252626,-5015.5435,0.00041127,2]
[421258973,1777287252635,-1238.16,0.00041155,120]
[421258974,1777287252643,-150.0,0.0004118,120]
[421258975,1777287252653,-700.0,0.000412,120]
[421258976,1777287252663,-700.0,0.000412,91]
[421258977,1777287252672,-1000.0,0.000412,99]
[421258978,1777287252681,-250.0,0.0004125,120]
[421258979,1777287252690,-1238.16,0.00041255,120]
[421258980,1777287252700,-5015.5442,0.00041267,2]
[421258981,1777287252709,-700.0,0.000413,120]
[421258982,1777287252718,-700.0,0.000413,91]
[421258983,1777287252727,-1000.0,0.000413,99]
[421258984,1777287252737,-200.0,0.00041308,120]
[421258985,1777287252745,-500.0,0.00041314,120]
[421258986,1777287252755,-304.26373563,0.00041314,120]
[421258987,1777287252764,-250.0,0.00041315,100]
[421258988,1777287252783,-1104.0,0.00041325,120]
[421258989,1777287252792,-153.58,0.0004135,120]
[421258990,1777287252801,-1238.16,0.00041355,120]
[421258991,1777287252810,-2971.690714,0.00041357,7]
[421258992,1777287252819,-1499.33569,0.00041357,7]
[421258993,1777287252828,-6092.40274059,0.00041357,13]
[421258994,1777287252837,-150.5,0.0004136,120]
[421258995,1777287252846,-1500.0,0.00041369,40]
[421258996,1777287252855,-1000.0,0.0004137,120]
[421258997,1777287252865,-700.0,0.000414,120]
[421258998,1777287252874,-700.0,0.000414,91]
[421258999,1777287252883,-1000.0,0.000414,99]
[421259000,1777287252892,-157.2068802,0.00041401,7]
[421259001,1777287252903,-154.6905,0.00041414,30]
[421259002,1777287252911,-681833.612,0.00041444,7]
[421259003,1777287252921,-1238.16,0.00041455,120]
[421259004,1777287252931,-27974.8179957,0.00041494,112]
[421259005,1777287252940,-168.16,0.000415,2]
[421259006,1777287252949,-500.0,0.000415,45]
[421259007,1777287252959,-500.0,0.000415,45]
[421259008,1777287252968,-500.0,0.000415,45]
[421259009,1777287252978,-500.0,0.000415,45]
[421259010,1777287252987,-1785.28291805,0.000415,120]
[421259011,1777287252996,-250.0,0.000415,120]
[421259012,1777287253005,-700.0,0.000415,120]
[421259013,1777287253014,-700.0,0.000415,91]
[421259014,1777287253023,-4000.0,0.000415,120]
[421259015,1777287253032,-1000.0,0.000415,99]
[421259016,1777287253041,-150.0,0.00041553,120]
[421259017,1777287253052,-1238.16,0.00041555,120]
[421259018,1777287253062,-250.0,0.00041589,100]
[421259019,1777287253071,-273.14037603,0.000416,30]
[421259020,1777287253080,-152.0,0.000416,120]
[421259021,1777287253089,-250.0,0.000416,120]
[421259022,1777287253099,-700.0,0.000416,120]
[421259023,1777287253108,-700.0,0.000416,91]
[421259024,1777287253117,-1000.0,0.000416,99]
[421259025,1777287253126,-1104.0,0.00041609,120]
[421259026,1777287253135,-50000.0,0.00041616,60]
[421259027,1777287253144,-831.79,0.00041616,60]
[421259028,1777287253154,-899.04,0.00041616,60]
[421259029,1777287253163,-150.0,0.00041637,120]
[421259030,1777287253172,-2000.0,0.0004164,120]
[421259031,1777287253181,-1500.0,0.00041643,50]
[421259032,1777287253191,-301.31,0.00041644,30]
[421259033,1777287253200,-2903.06,0.00041644,120]
[421259034,1777287253210,-1000.0,0.00041644,120]
[421259035,1777287253219,-215.22,0.00041644,120]
[421259036,1777287253229,-1238.16,0.00041655,120]
[421259037,1777287253238,-212.39447274,0.00041668,120]
[421259038,1777287253247,-157.2068802,0.00041675,7]
[421259039,1777287253257,-1000.0,0.00041697,120]
[421259040,1777287253266,-1000.0,0.00041697,120]
[421259041,1777287253275,-1000.0,0.00041697,120]
[421259042,1777287253284,-1000.0,0.00041697,120]
[421259043,1777287253294,-1000.0,0.00041697,120]
[421259044,1777287253303,-1000.0,0.00041697,120]
[421259045,1777287253312,-1000.0,0.00041697,120]
[421259046,1777287253321,-1000.0,0.00041697,120]
[421259047,1777287253330,-1000.0,0.00041697,120]
[421259048,1777287253340,-1000.0,0.00041697,120]
[421259049,1777287253349,-1000.0,0.00041697,120]
[421259050,1777287253358,-1000.0,0.00041697,120]
[421259051,1777287253367,-1000.0,0.00041697,120]
[421259052,1777287253376,-1000.0,0.00041697,120]
[421259053,1777287253386,-1000.0,0.00041697,120]
[421259054,1777287253395,-1000.0,0.00041697,120]
[421259055,1777287253404,-1000.0,0.00041697,120]
[421259056,1777287253413,-1000.0,0.00041697,120]
[421259057,1777287253423,-1000.0,0.00041697,120]
[421259058,1777287253431,-1000.0,0.00041697,120]
[421259059,1777287253440,-1000.0,0.00041697,120]
[421259060,1777287253450,-1000.0,0.00041697,120]
[421259061,1777287253459,-1000.0,0.00041697,120]
[421259062,1777287253468,-1000.0,0.00041697,120]
[421259063,1777287253477,-1000.0,0.00041697,120]
[421259064,1777287253487,-1000.0,0.00041697,120]
[421259065,1777287253496,-1000.0,0.00041697,120]
[421259066,1777287253505,-1000.0,0.00041697,120]
[421259067,1777287253514,-1000.0,0.00041697,120]
[421259068,1777287253523,-1389.31225355,0.00041697,120]
[421259069,1777287253532,-8056.92214078,0.000417,7]
[421259070,1777287253542,-166.0,0.000417,120]
[421259071,1777287253551,-700.0,0.000417,120]
[421259072,1777287253561,-700.0,0.000417,91]
[421259073,1777287253570,-1000.0,0.000417,99]
[421259074,1777287253579,-10726.0,0.000417,117]
[421259075,1777287253588,-150.0,0.00041706,120]
[421259076,1777287253597,-250.0,0.0004175,120]
[421259077,1777287253606,-1238.16,0.00041755,120]
[421259078,1777287253616,-670.37529803,0.00041761,30]
[421259079,1777287253625,-1000.0,0.0004179,120]
[421259080,1777287253635,-1000.0,0.0004179,120]
[421259081,1777287253644,-1000.0,0.0004179,120]
[421259082,1777287253653,-1000.0,0.0004179,120]
[421259083,1777287253662,-1000.0,0.0004179,120]
[421259084,1777287253671,-2302.36749897,0.000418,90]
[421259085,1777287253681,-700.0,0.000418,120]
[421259086,1777287253690,-700.0,0.000418,91]
[421259087,1777287253700,-1000.0,0.000418,99]
[421259088,1777287253709,-214.33253288,0.00041837,120]
[421259089,1777287253718,-1238.16,0.00041855,120]
[421259090,1777287253728,-152.0,0.00041859,5]
[421259091,1777287253737,-1104.0,0.00041893,120]
[421259092,1777287253746,-145436.9128734,0.000419,30]
[421259093,1777287253756,-673.64240479,0.000419,30]
[421259094,1777287253766,-2879.21223084,0.000419,120]
[421259095,1777287253775,-170.92698124,0.000419,120]
[421259096,1777287253785,-5166.0,0.000419,60]
[421259097,1777287253795,-194.5,0.000419,120]
[421259098,1777287253804,-700.0,0.000419,120]
[421259099,1777287253814,-700.0,0.000419,91]
[421259100,1777287253823,-1000.0,0.000419,99]
[421259101,1777287253832,-176.23256496,0.000419,120]
[421259102,1777287253841,-176.23256492,0.000419,120]
[421259103,1777287253850,-176.23256492,0.000419,120]
[421259104,1777287253860,-176.23256492,0.000419,120]
[421259105,1777287253869,-176.23256492,0.000419,120]
[421259106,1777287253879,-1500.0,0.00041917,60]
[421259107,1777287253888,-1000.0,0.00041918,120]
[421259108,1777287253897,-500.0,0.00041918,120]
[421259109,1777287253906,-157.2068802,0.00041948,7]
[421259110,1777287253916,-1238.16,0.00041955,120]
[421259111,1777287253925,-353.93,0.00041977,120]
[421259112,1777287253934,-584.58,0.00041977,120]
[421259113,1777287253944,-165.19,0.00041977,120]
[421259114,1777287253953,-165.21,0.00041977,120]
[421259115,1777287253962,-1849.333439,0.00041987,80]
[421259116,1777287253972,-51762.41905102,0.00041987,30]
[421259117,1777287253981,-500.0,0.00042,2]
[421259118,1777287253990,-150.0,0.00042,5]
[421259119,1777287253999,-100068.9,0.00042,7]
[421259120,1777287254009,-179.34291853,0.00042,7]
[421259121,1777287254018,-885.0,0.00042,14]
[421259122,1777287254028,-150.0,0.00042,4]
[421259123,1777287254037,-164347.46685241,0.00042,11]
[421259124,1777287254047,-1000.0,0.00042,120]
[421259125,1777287254056,-1000.0,0.00042,120]
[421259126,1777287254065,-1000.0,0.00042,120]
[421259127,1777287254074,-1000.0,0.00042,120]
[421259128,1777287254083,-1000.0,0.00042,120]
[421259129,1777287254092,-1000.0,0.00042,120]
[421259130,1777287254101,-1000.0,0.00042,120]
[421259131,1777287254110,-1000.0,0.00042,120]
[421259132,1777287254119,-1000.0,0.00042,120]
[421259133,1777287254128,-1000.0,0.00042,120]
[421259134,1777287254137,-1000.0,0.00042,120]
[421259135,1777287254146,-1000.0,0.00042,120]
[421259136,1777287254155,-1000.0,0.00042,120]
[421259137,1777287254164,-1000.0,0.00042,120]
[421259138,1777287254173,-1000.0,0.00042,120]
[421259139,1777287254182,-1000.0,0.00042,120]
[421259140,1777287254191,-1000.0,0.00042,120]
[421259141,1777287254201,-1000.0,0.00042,120]
[421259142,1777287254210,-1000.0,0.00042,120]
[421259143,1777287254219,-1000.0,0.00042,120]
[421259144,1777287254227,-1000.0,0.00042,120]
[421259145,1777287254236,-1000.0,0.00042,120]
[421259146,1777287254245,-1000.0,0.00042,120]
[421259147,1777287254254,-1000.0,0.00042,120]
[421259148,1777287254264,-1000.0,0.00042,120]
[421259149,1777287254273,-1000.0,0.00042,120]
[421259150,1777287254282,-1000.0,0.00042,120]
[421259151,1777287254291,-1000.0,0.00042,120]
[421259152,1777287254300,-1000.0,0.00042,120]
[421259153,1777287254309,-1389.31225354,0.00042,120]
[421259154,1777287254318,-500.0,0.00042,45]
[421259155,1777287254328,-500.0,0.00042,45]
[421259156,1777287254337,-500.0,0.00042,45]
[421259157,1777287254346,-462.5384194,0.00042,45]
[421259158,1777287254356,-5878.93936884,0.00042,120]
[421259159,1777287254366,-3572.9106175,0.00042,120]
[421259160,1777287254375,-1500.0,0.00042,120]
[421259161,1777287254384,-500.0,0.00042,120]
[421259162,1777287254393,-304.05530719,0.00042,120]
[421259163,1777287254402,-605.64076803,0.00042,120]
[421259164,1777287254411,-180.99232946,0.00042,30]
[421259165,1777287254420,-222.25415071,0.00042,30]
[421259166,1777287254429,-2000.0,0.00042,120]
[421259167,1777287254438,-2000.0,0.00042,120]
[421259168,1777287254448,-1518.60365461,0.00042,120]
[421259169,1777287254457,-161.0,0.00042,120]
[421259170,1777287254467,-212.0,0.00042,30]
[421259171,1777287254476,-568.29040292,0.00042,120]
[421259172,1777287254485,-2030.82989455,0.00042,120]
[421259173,1777287254494,-2006.431208,0.00042,120]
[421259174,1777287254504,-10000.0,0.00042,120]
[421259175,1777287254513,-1000.0,0.00042,120]
[421259176,1777287254523,-1000.0,0.00042,120]
[421259177,1777287254532,-1000.0,0.00042,120]
[421259178,1777287254541,-1000.0,0.00042,120]
[421259179,1777287254669,-1000.0,0.00042,120]
[421259180,1777287254679,-250.0,0.00042,120]
[421259181,1777287254689,-3000.0,0.00042,120]
[421259182,1777287254698,-953.8510988,0.00042,120]
[421259183,1777287254707,-272.0,0.00042,2]
[421259184,1777287254717,-897.1744297,0.00042,120]
[421259185,1777287254727,-182.0,0.00042,30]
[421259186,1777287254736,-2000.0,0.00042,120]
[421259187,1777287254746,-1000.0,0.00042,120]
[421259188,1777287254755,-2776.15,0.00042,120]
[421259189,1777287254764,-694.03,0.00042,120]
[421259190,1777287254774,-694.03,0.00042,120]
[421259191,1777287254784,-1028.94,0.00042,120]
[421259192,1777287254798,-257.23,0.00042,120]
[421259193,1777287254807,-257.23,0.00042,120]
[421259194,1777287254816,-327.87,0.00042,120]
[421259195,1777287254826,-737.67,0.00042,120]
[421259196,1777287254836,-50000.0,0.00042,120]
[421259197,1777287254845,-2180.46,0.00042,120]
[421259198,1777287254855,-1355.55,0.00042,120]
[421259199,1777287254864,-1543.68,0.00042,120]
[421259200,1777287254874,-1865.09,0.00042,120]
[421259201,1777287254884,-2551.38,0.00042,120]
[421259202,1777287254894,-2000.05,0.00042,120]
[421259203,1777287254903,-150.0,0.00042,53]
[421259204,1777287254912,-1419.17,0.00042,120]
[421259205,1777287254921,-354.79,0.00042,120]
[421259206,1777287254931,-354.79,0.00042,120]
[421259207,1777287254940,-300.0,0.00042,120]
[421259208,1777287254949,-500.0,0.00042,120]
[421259209,1777287254958,-1380.36729987,0.0004201,2]
[421259210,1777287254968,-500.0,0.00042021,60]
[421259211,1777287254977,-9052.34231038,0.0004205,2]
[421259212,1777287254987,-305.22865223,0.00042053,60]
[421259213,1777287254996,-1238.16,0.00042055,120]
[421259214,1777287255006,-357.11175746,0.00042057,7]
[421259215,1777287255015,-852292.015,0.00042057,2]
[421259216,1777287255025,-150.0,0.00042071,120]
[421259217,1777287255034,-250.0,0.00042082,110]
[421259218,1777287255044,-214.46,0.00042115,120]
[421259219,1777287255054,-146802.86509205,0.0004212,60]
[421259220,1777287255063,-1238.16,0.00042155,120]
[421259221,1777287255073,-300.0,0.00042166,120]
[421259222,1777287255082,-300.0,0.00042166,120]
[421259223,1777287255091,-500.0,0.00042166,120]
[421259224,1777287255101,-500.0,0.00042166,120]
[421259225,1777287255111,-300.0,0.00042167,120]
[421259226,1777287255120,-1500.0,0.00042191,70]
[421259227,1777287255130,-1000.0,0.00042192,120]
[421259228,1777287255140,-5701.30054222,0.000422,2]
[421259229,1777287255150,-166.0,0.000422,120]
[421259230,1777287255160,-157.2068802,0.00042222,7]
[421259231,1777287255170,-300.0,0.00042229,120]
[421259232,1777287255180,-388.62956374,0.00042229,120]
[421259233,1777287255190,-150.0,0.00042239,120]
[421259234,1777287255200,-250.0,0.0004225,120]
[421259235,1777287255209,-1238.16,0.00042255,120]
[421259236,1777287255219,-2057.85457168,0.00042257,120]
[421259237,1777287255229,-561.31691995,0.00042257,30]
[421259238,1777287255240,-561.31691993,0.00042257,30]
[421259239,1777287255250,-561.31691993,0.00042257,30]
[421259240,1777287255260,-327.43486997,0.00042257,2]
[421259241,1777287255270,-327.43486996,0.00042257,2]
[421259242,1777287255280,-327.43486996,0.00042257,2]
[421259243,1777287255289,-1022750.418,0.00042257,7]
[421259244,1777287255299,-300.0,0.00042266,120]
[421259245,1777287255308,-201.93029831,0.00042266,120]
[421259246,1777287255319,-500.0,0.00042266,120]
[421259247,1777287255329,-500.0,0.00042266,120]
[421259248,1777287255340,-2000.0,0.000423,2]
[421259249,1777287255350,-239.09469021,0.000423,120]
[421259250,1777287255359,-238536.0,0.000423,60]
[421259251,1777287255368,-300000.0,0.000423,30]
[421259252,1777287255378,-275.44,0.0004234,30]
[421259253,1777287255387,-1238.16,0.00042355,120]
[421259254,1777287255397,-50000.0,0.00042356,50]
[421259255,1777287255406,-1165.05801855,0.00042356,10]
[421259256,1777287255415,-1012.11,0.00042357,14]
[421259257,1777287255424,-4911.17,0.00042357,30]
[421259258,1777287255434,-221.0,0.00042357,120]
[421259259,1777287255443,-156.0,0.00042357,120]
[421259260,1777287255452,-313.0,0.00042357,120]
[421259261,1777287255462,-401.0,0.00042357,120]
[421259262,1777287255471,-32101.74338384,0.00042357,28]
[421259263,1777287255481,-1000000.0,0.00042357,15]
[421259264,1777287255490,-162.6301625,0.00042357,2]
[421259265,1777287255499,-400.25848429,0.00042357,2]
[421259266,1777287255509,-582.51844392,0.00042357,5]
[421259267,1777287255518,-1210.0,0.00042357,2]
[421259268,1777287255528,-719.61366365,0.00042357,2]
[421259269,1777287255537,-2050.41349372,0.00042357,5]
[421259270,1777287255546,-356.55011293,0.00042357,2]
[421259271,1777287255556,-989.64440542,0.00042357,2]
[421259272,1777287255566,-1556.30015449,0.00042357,2]
[421259273,1777287255575,-1053.98616345,0.00042357,2]
[421259274,1777287255586,-502.48711308,0.00042357,2]
[421259275,1777287255597,-1523.91158712,0.00042357,2]
[421259276,1777287255607,-2017.97345167,0.00042357,2]
[421259277,1777287255617,-154.93025029,0.00042357,2]
[421259278,1777287255626,-1717.580553,0.00042357,2]
[421259279,1777287255636,-1009.87860581,0.00042357,5]
[421259280,1777287255645,-255.10549143,0.00042357,2]
[421259281,1777287255655,-500.0,0.00042357,2]
[421259282,1777287255664,-1291.54207636,0.00042357,2]
[421259283,1777287255674,-249.14746785,0.00042357,2]
[421259284,1777287255683,-1066.51537552,0.00042357,2]
[421259285,1777287255693,-600.0,0.00042357,5]
[421259286,1777287255703,-558.32533094,0.00042357,2]
[421259287,1777287255712,-500.0,0.00042357,5]
[421259288,1777287255722,-1342.97594956,0.00042357,2]
[421259289,1777287255731,-1221.0,0.00042357,4]
[421259290,1777287255741,-765.3919694,0.00042357,2]
[421259291,1777287255750,-188.43974591,0.00042357,2]
[421259292,1777287255760,-643.0,0.00042357,2]
[421259293,1777287255770,-2029.17574255,0.00042357,4]
[421259294,1777287255780,-993.69099986,0.00042357,2]
[421259295,1777287255790,-586.68608465,0.00042357,2]
[421259296,1777287255799,-335.21948368,0.00042357,2]
[421259297,1777287255809,-179.54000178,0.00042357,2]
[421259298,1777287255818,-550.0,0.00042357,2]
[421259299,1777287255828,-234.07147624,0.00042357,2]
[421259300,1777287255838,-177.64108436,0.00042357,2]
[421259301,1777287255848,-500.49423313,0.00042357,3]
[421259302,1777287255858,-383.74208709,0.00042357,2]
[421259303,1777287255867,-1307.30842304,0.00042357,2]
[421259304,1777287255876,-1056.43212556,0.00042357,2]
[421259305,1777287255886,-676.7172946,0.00042357,2]
[421259306,1777287255896,-640.71921747,0.00042357,2]
[421259307,1777287255905,-219.65268135,0.00042357,2]
[421259308,1777287255915,-1091.02365542,0.00042357,2]
[421259309,1777287255925,-349.89697586,0.00042357,2]
[421259310,1777287255934,-1100.0,0.00042357,2]
[421259311,1777287255944,-932.95983906,0.00042357,2]
[421259312,1777287255953,-492.57350827,0.00042357,2]
[421259313,1777287255963,-630.05184165,0.00042357,2]
[421259314,1777287255973,-1623.55589924,0.00042357,2]
[421259315,1777287255982,-1117.82841022,0.00042357,5]
[421259316,1777287255991,-560.8302382,0.00042357,2]
[421259317,1777287256000,-1034.88250154,0.00042357,2]
[421259318,1777287256010,-373.14607638,0.00042357,2]
[421259319,1777287256019,-1878.8273007,0.00042357,2]
[421259320,1777287256029,-1143.86317968,0.00042357,2]
[421259321,1777287256038,-279.52857539,0.00042357,2]
[421259322,1777287256047,-411.81654054,0.00042357,2]
[421259323,1777287256056,-207.53724027,0.00042357,2]
[421259324,1777287256066,-883.29522249,0.00042357,2]
[421259325,1777287256075,-289.33462659,0.00042357,2]
[421259326,1777287256084,-896.39517901,0.00042357,2]
[421259327,1777287256094,-471.24234109,0.00042357,2]
[421259328,1777287256103,-150.0,0.00042357,2]
[421259329,1777287256113,-610.0,0.00042357,2]
[421259330,1777287256122,-362.58187141,0.00042357,2]
[421259331,1777287256131,-517.91865118,0.00042357,2]
[421259332,1777287256141,-204.10336738,0.00042357,2]
[421259333,1777287256150,-759.88761894,0.00042357,2]
[421259334,1777287256159,-504.93272633,0.00042357,5]
[421259335,1777287256168,-201.17013438,0.00042357,2]
[421259336,1777287256178,-1528.27535179,0.00042357,2]
[421259337,1777287256187,-467.51656009,0.00042357,2]
[421259338,1777287256197,-160.45645755,0.00042357,2]
[421259339,1777287256206,-1600.67477635,0.00042357,2]
[421259340,1777287256216,-180.0,0.00042357,2]
[421259341,1777287256225,-161.13988598,0.00042357,2]
[421259342,1777287256235,-500.0,0.00042357,2]
[421259343,1777287256245,-200.04528313,0.00042357,2]
[421259344,1777287256255,-161.59237566,0.00042357,10]
[421259345,1777287256264,-17510.64888058,0.00042357,2]
[421259346,1777287256274,-206941.88554445,0.00042357,2]
[421259347,1777287256284,-171822.98537484,0.00042357,2]
[421259348,1777287256294,-125020.0495559,0.00042357,2]
[421259349,1777287256304,-52155.25571751,0.00042357,2]
[421259350,1777287256313,-2868.80746341,0.00042357,2]
[421259351,1777287256323,-5313.28993231,0.00042357,2]
[421259352,1777287256332,-2515.96394966,0.00042357,2]
[421259353,1777287256342,-2770.41823143,0.00042357,2]
[421259354,1777287256351,-221643.08672623,0.00042357,2]
[421259355,1777287256361,-58738.9457286,0.00042357,2]
[421259356,1777287256371,-9463.02199194,0.00042357,2]
[421259357,1777287256380,-3504.07503203,0.00042357,2]
[421259358,1777287256389,-126683.92443247,0.00042357,2]
[421259359,1777287256398,-2250.36444208,0.00042357,2]
[421259360,1777287256407,-13147.58203468,0.00042357,2]
[421259361,1777287256417,-815080.14424766,0.00042357,2]
[421259362,1777287256427,-3320.27703499,0.00042357,2]
[421259363,1777287256436,-15150.27029214,0.00042357,2]
[421259364,1777287256445,-10966.94858314,0.00042357,2]